bitfinex-derivatives/quotes_BTCF0:USTF0_20250119
["timestamp","ask_amount","ask_price","bid_price","bid_amount"]
[1737263894622,0.047957,104370.0,104360.0,0.047961]
[1737263894823,0.047957,104370.0,104360.0,0.06295492]
[1737263895325,0.408757,104370.0,104360.0,0.01499392]
[1737263897531,0.408757,104370.0,104360.0,0.06295492]
[1737263897731,0.408757,104370.0,104360.0,0.1312101]
[1737263897930,0.55097296,104370.0,104360.0,0.1312101]
[1737263898143,0.19017296,104370.0,104360.0,0.1312101]
[1737263898534,0.14221596,104370.0,104360.0,0.1312101]
[1737263900132,0.19017196,104370.0,104360.0,0.06295492]
[1737263901632,0.047956,104370.0,104360.0,0.06295492]
[1737263901929,0.408756,104370.0,104360.0,0.01499392]
[1737263902535,0.408756,104370.0,104350.0,0.62879061]
[1737263902937,0.408756,104370.0,104350.0,0.64378515]
[1737263903136,0.55097196,104370.0,104350.0,0.35810348]
[1737263903642,0.55097196,104370.0,104350.0,0.71890348]
[1737263904229,0.55097196,104370.0,104350.0,0.6506453]
[1737263904434,0.55097196,104370.0,104360.0,0.11621618]
[1737263904742,0.55097196,104370.0,104360.0,0.13121072]
[1737263906141,0.19017196,104370.0,104360.0,0.13121072]
[1737263906542,0.14221596,104370.0,104360.0,0.5602659]
[1737263907043,0.14221596,104380.0,104370.0,0.047956]
[1737263907243,0.14221596,104380.0,104370.0,0.62111118]
[1737263907645,0.14221596,104380.0,104370.0,0.69251118]
[1737263909333,0.14221596,104380.0,104370.0,1.20807118]
[1737263909536,0.14221596,104390.0,104380.0,0.047951]
[1737263909743,0.14221596,104390.0,104380.0,0.47700618]
[1737263910947,0.25135481,104400.0,104390.0,0.047947]
[1737263911249,0.25135481,104400.0,104390.0,0.47700218]
[1737263912052,0.10913885,104400.0,104390.0,0.47700218]
[1737263912351,0.46993885,104400.0,104390.0,0.047947]
[1737263912844,0.51788085,104400.0,104390.0,0.11620218]
[1737263913047,0.46993885,104400.0,104390.0,0.11620218]
[1737263914047,0.10913885,104400.0,104390.0,0.47700218]
[1737263916144,0.15707685,104400.0,104390.0,0.47700218]
[1737263917052,0.10913885,104400.0,104390.0,0.47700218]
[1737263924262,0.10913885,104400.0,104390.0,0.83780218]
[1737263924466,0.219,104420.0,104410.0,0.047934]
[1737263924665,0.26693,104420.0,104410.0,0.047934]
[1737263925363,0.69598518,104420.0,104410.0,0.047934]
[1737263925666,0.047936,104410.0,104400.0,0.047938]
[1737263925863,0.11619118,104410.0,104400.0,0.047938]
[1737263926059,0.06825518,104410.0,104390.0,0.3608]
[1737263926270,0.408738,104400.0,104390.0,0.047942]
[1737263926463,0.047938,104400.0,104390.0,0.11619718]
[1737263926657,0.047935,104410.0,104400.0,0.047938]
[1737263926860,0.047935,104410.0,104400.0,0.11619318]
[1737263927767,0.22784365,104420.0,104410.0,0.047934]
[1737263927966,0.22784365,104420.0,104410.0,0.47698918]
[1737263928172,0.08424365,104420.0,104410.0,0.47698918]
[1737263928474,0.00884365,104420.0,104410.0,0.47698918]
[1737263928671,0.14221596,104430.0,104410.0,0.65255518]
[1737263928970,0.14221596,104430.0,104420.0,0.11618418]
[1737263929167,0.19014096,104430.0,104420.0,0.047929]
[1737263929363,0.19014096,104430.0,104420.0,0.11618418]
[1737263930164,0.047925,104430.0,104420.0,0.11618418]
[1737263930367,0.047925,104430.0,104420.0,0.047929]
[1737263931165,0.05702406,104430.0,104420.0,0.047929]
[1737263933371,0.00909906,104430.0,104420.0,0.47698418]
[1737263933568,0.76733696,104440.0,104420.0,0.47698418]
[1737263933774,0.93754715,104440.0,104420.0,0.52491018]
[1737263933974,0.57674715,104440.0,104430.0,0.047925]
[1737263934675,0.40653696,104440.0,104430.0,0.047925]
[1737263935466,0.40653696,104440.0,104430.0,0.11618018]
[1737263935467,0.36794238,104440.0,104430.0,0.11618018]
[1737263935673,0.29744238,104440.0,104430.0,0.11618018]
[1737263935874,0.22164238,104440.0,104430.0,0.11618018]
[1737263936069,0.15154238,104440.0,104430.0,0.11618018]
[1737263938067,0.00932642,104440.0,104430.0,0.11618018]
[1737263938267,0.79494315,104450.0,104430.0,0.16410518]
[1737263938466,0.43414315,104450.0,104430.0,0.11618018]
[1737263938672,0.79494315,104450.0,104430.0,0.47698018]
[1737263939067,0.84286415,104450.0,104430.0,0.47698018]
[1737263939571,0.68192667,104450.0,104430.0,0.11618018]
[1737263939777,0.63400467,104450.0,104430.0,0.11618018]
[1737263939979,0.047923,104440.0,104430.0,0.11618018]
[1737263940379,0.047928,104430.0,104420.0,0.408731]
[1737263940566,0.47698318,104430.0,104410.0,0.49832276]
[1737263940765,0.548028,104430.0,104410.0,0.49832276]
[1737263940971,0.61628318,104430.0,104410.0,0.34852276]
[1737263941174,0.047932,104420.0,104410.0,0.27482276]
[1737263941777,0.118132,104420.0,104410.0,0.27482276]
[1737263941975,0.118132,104420.0,104410.0,0.047934]
[1737263942278,0.118132,104420.0,104410.0,0.11618918]
[1737263945382,0.047936,104410.0,104400.0,0.77548094]
[1737263946775,0.12736144,104420.0,104410.0,0.047936]
[1737263947078,0.07942844,104420.0,104410.0,0.11619118]
[1737263947279,0.00922844,104420.0,104410.0,0.11619118]
[1737263947479,0.548028,104430.0,104420.0,0.047931]
[1737263947681,0.548028,104430.0,104420.0,0.11618618]
[1737263947883,0.69024396,104430.0,104420.0,0.11618618]
[1737263948274,0.69024396,104430.0,104420.0,0.047931]
[1737263949181,0.75849914,104430.0,104400.0,0.72754394]
[1737263949380,0.047934,104410.0,104400.0,0.41468094]
[1737263950180,0.047934,104410.0,104400.0,0.22688876]
[1737263950495,0.47698918,104410.0,104400.0,0.22688876]
[1737263950784,0.047939,104400.0,104390.0,0.92131243]
[1737263950985,0.118539,104400.0,104390.0,0.92131243]
[1737263951186,0.191239,104400.0,104390.0,0.87337043]
[1737263951781,0.191239,104400.0,104390.0,0.92131343]
[1737263952090,0.191239,104400.0,104390.0,0.87337043]
[1737263952290,0.191239,104400.0,104390.0,0.3608]
[1737263953389,0.2005915,104400.0,104390.0,0.3608]
[1737263954088,0.2005915,104400.0,104390.0,0.47699918]
[1737263955086,0.1278915,104400.0,104390.0,0.47699918]
[1737263956777,0.1278915,104400.0,104390.0,0.3608]
[1737263957290,0.1278915,104400.0,104390.0,0.47699818]
[1737263958297,0.1278915,104400.0,104390.0,0.408743]
[1737263958686,0.1278915,104400.0,104390.0,0.47699818]
[1737263958992,0.0572915,104400.0,104390.0,0.47699818]
[1737263959291,0.0572915,104400.0,104390.0,0.54839818]
[1737263960294,0.14221596,104410.0,104400.0,0.047938]
[1737263960498,0.14221596,104410.0,104400.0,0.61929318]
[1737263960795,0.047934,104410.0,104400.0,0.190238]
[1737263960982,0.05687019,104410.0,104400.0,0.190238]
[1737263962792,0.05687019,104410.0,104400.0,0.118338]
[1737263963390,0.12657019,104410.0,104400.0,0.118338]
[1737263963797,0.12657019,104410.0,104400.0,0.047938]
[1737263964786,0.55562537,104410.0,104400.0,0.047938]
[1737263965186,0.12657019,104410.0,104400.0,0.047938]
[1737263965986,0.12657019,104410.0,104400.0,0.11619318]
[1737263966389,0.12657019,104410.0,104390.0,0.480142]
[1737263966588,0.48737019,104410.0,104390.0,0.480142]
[1737263967389,0.047938,104400.0,104390.0,0.3608]
[1737263967594,0.25879318,104400.0,104390.0,0.17200589]
[1737263968599,0.190538,104400.0,104390.0,0.17200589]
[1737263968902,0.190538,104400.0,104380.0,0.95399099]
[1737263969100,0.047943,104390.0,104380.0,0.80999099]
[1737263969296,0.11619818,104390.0,104380.0,0.76204699]
[1737263969597,0.47699818,104390.0,104380.0,0.40124699]
[1737263969794,0.55249818,104390.0,104380.0,0.40124699]
[1737263970401,0.047948,104380.0,104370.0,0.66719799]
[1737263971094,0.047948,104380.0,104370.0,0.59259799]
[1737263971693,0.047948,104380.0,104370.0,0.191351]
[1737263972396,0.047948,104380.0,104370.0,0.047951]
[1737263976102,0.11620318,104380.0,104370.0,0.047951]
[1737263976494,0.047948,104380.0,104370.0,0.047951]
[1737263977402,0.047948,104380.0,104370.0,0.21995689]
[1737263979104,0.05706915,104380.0,104370.0,0.21995689]
[1737263979307,0.05706915,104380.0,104370.0,0.17200589]
[1737263979805,0.05706915,104380.0,104370.0,0.21995789]
[1737263980502,0.05706915,104380.0,104370.0,0.047952]
[1737263985304,0.05706915,104380.0,104360.0,0.67406107]
[1737263985510,0.047952,104370.0,104360.0,0.65376089]
[1737263989308,0.00912115,104380.0,104360.0,0.72201607]
[1737263989509,0.14184804,104390.0,104370.0,0.42905518]
[1737263989709,0.18979304,104390.0,104380.0,0.54790318]
[1737263989917,0.14184804,104390.0,104380.0,0.62560318]
[1737263991102,0.19889094,104390.0,104380.0,0.557348]
[1737263991714,0.0570429,104390.0,104380.0,0.95859499]
[1737263992810,0.07711404,104410.0,104390.0,0.3608]
[1737263993020,0.43474474,104440.0,104430.0,0.047925]
[1737263993315,0.43474474,104440.0,104430.0,0.83778018]
[1737263993613,0.48266474,104440.0,104430.0,0.7216]
[1737263994020,0.55091992,104440.0,104430.0,0.7216]
[1737263994208,0.05712061,104440.0,104430.0,0.89360589]
[1737263995217,0.05712061,104440.0,104430.0,0.7216]
[1737263995820,0.12702061,104440.0,104430.0,0.7216]
[1737263998316,0.12702061,104440.0,104430.0,0.78985518]
[1737263998624,0.12702061,104440.0,104430.0,0.83778018]
[1737263998625,0.00920061,104440.0,104430.0,0.83778018]
[1737263998824,0.047916,104450.0,104430.0,0.78985518]
[1737263999124,0.047916,104450.0,104440.0,0.47697518]
[1737263999323,0.047916,104450.0,104440.0,0.40872]
[1737264000820,0.047916,104450.0,104440.0,0.3608]
[1737264001525,0.05708205,104450.0,104440.0,0.3608]
[1737264005424,0.00916605,104450.0,104440.0,0.47697518]
[1737264005620,0.200912,104460.0,104440.0,0.62387518]
[1737264005821,0.200912,104460.0,104450.0,0.42905518]
[1737264006222,0.200912,104460.0,104450.0,0.3608]
[1737264007021,0.200912,104460.0,104450.0,0.42905518]
[1737264007529,0.200912,104460.0,104450.0,0.47697118]
[1737264008520,0.21033585,104460.0,104450.0,0.3608]
[1737264011522,0.27859103,104460.0,104450.0,0.3608]
[1737264012931,0.21033585,104460.0,104450.0,0.3608]
[1737264014727,0.21033585,104460.0,104440.0,0.47697618]
[1737264014922,0.04792,104450.0,104440.0,0.47697618]
[1737264015131,0.04792,104450.0,104440.0,0.83777618]
[1737264015531,0.04792,104450.0,104440.0,0.769521]
[1737264017326,0.04792,104450.0,104440.0,0.83777618]
[1737264019136,0.08372385,104460.0,104450.0,0.04792]
[1737264019327,0.00942385,104460.0,104450.0,0.47697518]
[1737264019527,0.167127,104470.0,104450.0,0.71737518]
[1737264019729,0.288764,104470.0,104460.0,0.3608]
[1737264021133,0.119213,104470.0,104460.0,0.3608]
[1737264021326,0.047913,104470.0,104460.0,0.3608]
[1737264021531,0.047913,104470.0,104460.0,0.408715]
[1737264021936,0.380358,104480.0,104460.0,0.47697018]
[1737264022337,0.169551,104470.0,104460.0,0.47697018]
[1737264022527,0.169551,104470.0,104460.0,0.769515]
[1737264023134,0.217461,104470.0,104460.0,0.7216]
[1737264023841,0.26405901,104470.0,104460.0,0.7216]
[1737264024732,0.217461,104470.0,104460.0,0.7216]
[1737264025843,0.217461,104470.0,104460.0,0.78985518]
[1737264027745,0.169551,104470.0,104460.0,0.83777018]
[1737264029644,0.14212936,104470.0,104460.0,0.83777018]
[1737264032142,0.17881688,104480.0,104470.0,0.04791]
[1737264032337,0.17881688,104480.0,104470.0,0.63976518]
[1737264033346,0.00926588,104480.0,104470.0,0.81177107]
[1737264033549,0.169551,104490.0,104470.0,0.81177107]
[1737264033743,0.169551,104490.0,104480.0,0.47696118]
[1737264034444,0.147899,104500.0,104490.0,0.047901]
[1737264034750,0.147899,104500.0,104490.0,0.63315618]
[1737264035348,0.15519108,104500.0,104490.0,0.644401]
[1737264038442,0.15519108,104500.0,104490.0,0.71265618]
[1737264039252,0.15519108,104500.0,104490.0,0.644401]
[1737264042250,0.15519108,104500.0,104490.0,0.63505618]
[1737264043349,0.10729208,104500.0,104490.0,0.63505618]
[1737264051254,0.15518908,104500.0,104490.0,0.63505618]
[1737264052862,0.15518908,104500.0,104490.0,0.408701]
[1737264053157,0.31228908,104500.0,104490.0,0.47695618]
[1737264053553,0.31228908,104500.0,104490.0,0.408701]
[1737264060551,0.38054426,104500.0,104490.0,0.3608]
[1737264060756,0.38054426,104500.0,104480.0,0.53236179]
[1737264060964,0.130101,104490.0,104480.0,0.53236179]
[1737264061855,0.48227331,104500.0,104490.0,0.047901]
[1737264062061,0.48227331,104500.0,104490.0,0.47695618]
[1737264062463,0.43437631,104500.0,104490.0,0.47695618]
[1737264062658,0.35237631,104500.0,104490.0,0.47695618]
[1737264062858,0.27727631,104500.0,104490.0,0.55225618]
[1737264063060,0.27727631,104500.0,104490.0,0.62895618]
[1737264063758,0.26998423,104500.0,104490.0,0.62895618]
[1737264064061,0.17801696,104510.0,104500.0,0.047896]
[1737264064264,0.17801696,104510.0,104500.0,0.47695118]
[1737264065366,0.16998423,104520.0,104510.0,0.047892]
[1737264065555,0.16998423,104520.0,104510.0,0.55884718]
[1737264065761,0.16998423,104520.0,104510.0,0.63634718]
[1737264066969,0.13619611,104530.0,104510.0,0.86509624]
[1737264067168,0.13619611,104530.0,104520.0,0.42905518]
[1737264067370,0.13619611,104530.0,104520.0,0.47694218]
[1737264067956,0.13619611,104530.0,104520.0,0.408687]
[1737264068370,0.13619611,104530.0,104520.0,0.64899274]
[1737264068962,0.00791311,104530.0,104520.0,0.64899274]
[1737264069173,0.16998423,104550.0,104540.0,0.047878]
[1737264069362,0.12927,104560.0,104540.0,0.83773318]
[1737264069363,0.45985423,104560.0,104540.0,0.83773318]
[1737264069563,0.45985423,104560.0,104550.0,0.3608]
[1737264070268,0.46769887,104560.0,104550.0,0.3608]
[1737264070459,0.29771464,104560.0,104550.0,0.3608]
[1737264071971,0.36596982,104560.0,104550.0,0.3608]
[1737264072162,0.047874,104550.0,104540.0,0.53285056]
[1737264072362,0.047874,104550.0,104540.0,0.3608]
[1737264073263,0.11612918,104550.0,104540.0,0.3608]
[1737264073463,0.047874,104550.0,104540.0,0.3608]
[1737264077175,0.047874,104550.0,104540.0,0.42905518]
[1737264077361,0.047874,104550.0,104540.0,0.47693318]
[1737264077761,0.24984464,104560.0,104540.0,0.42905518]
[1737264077964,0.29771364,104560.0,104550.0,0.408674]
[1737264078475,0.24984464,104560.0,104550.0,0.47692918]
[1737264078675,0.08814464,104560.0,104550.0,0.47692918]
[1737264079173,0.08814464,104560.0,104550.0,0.55572918]
[1737264079977,0.00784464,104560.0,104550.0,0.55572918]
[1737264080176,0.45504523,104580.0,104550.0,0.63492918]
[1737264080375,0.45504523,104580.0,104570.0,0.3608]
[1737264081174,0.285061,104580.0,104570.0,0.3608]
[1737264082281,0.29286214,104580.0,104570.0,0.3608]
[1737264085577,0.29286214,104580.0,104570.0,0.42905518]
[1737264085883,0.13736214,104580.0,104570.0,0.42905518]
[1737264086081,0.08950114,104580.0,104570.0,0.47691918]
[1737264086283,0.00780114,104580.0,104570.0,0.47691918]
[1737264086484,0.047856,104590.0,104570.0,0.63201918]
[1737264086679,0.047856,104590.0,104580.0,0.42905518]
[1737264088084,0.05553239,104590.0,104580.0,0.42905518]
[1737264088280,0.00767639,104590.0,104580.0,0.42905518]
[1737264088487,0.385152,104600.0,104580.0,0.55991518]
[1737264088676,0.385152,104600.0,104590.0,0.3608]
[1737264091586,0.393139,104600.0,104590.0,0.3608]
[1737264098284,0.393139,104600.0,104590.0,0.47690918]
[1737264098285,0.185487,104600.0,104590.0,0.47690918]
[1737264100783,0.107987,104600.0,104590.0,0.47690918]
[1737264100997,0.107987,104600.0,104590.0,0.55900918]
[1737264101889,0.42989803,104620.0,104610.0,0.047844]
[1737264102088,0.59988226,104620.0,104610.0,0.3608]
[1737264103291,0.60798879,104620.0,104610.0,0.3608]
[1737264103684,0.31954879,104620.0,104610.0,0.83769718]
[1737264103888,0.00810653,104620.0,104610.0,0.99599718]
[1737264104091,0.047833,104630.0,104620.0,0.047837]
[1737264104287,0.047833,104630.0,104620.0,0.408637]
[1737264106094,0.047837,104630.0,104620.0,0.408637]
[1737264106895,0.047837,104630.0,104620.0,0.3608]
[1737264107086,0.11609218,104630.0,104620.0,0.3608]
[1737264107282,0.123337,104630.0,104620.0,0.3608]
[1737264108297,0.08475509,104640.0,104620.0,0.3608]
[1737264108492,0.047837,104630.0,104620.0,0.408641]
[1737264110594,0.047837,104630.0,104620.0,0.3608]
[1737264115496,0.047837,104630.0,104620.0,0.408638]
[1737264116306,0.047837,104630.0,104620.0,0.40832217]
[1737264118001,0.047837,104630.0,104620.0,0.55197735]
[1737264120097,0.13258609,104640.0,104630.0,0.047833]
[1737264120308,0.13258609,104640.0,104630.0,0.47688818]
[1737264120498,0.05618609,104640.0,104630.0,0.55518818]
[1737264120707,0.00835509,104640.0,104630.0,0.63248818]
[1737264120902,0.047826,104650.0,104640.0,0.047829]
[1737264121211,0.14145803,104660.0,104650.0,0.047824]
[1737264121396,0.14145803,104660.0,104650.0,0.63247918]
[1737264121905,0.14973289,104660.0,104650.0,0.63247918]
[1737264122706,0.05609486,104660.0,104650.0,0.63247918]
[1737264122898,0.04782,104660.0,104650.0,0.564224]
[1737264123309,0.04782,104660.0,104650.0,0.63247918]
[1737264123694,0.11607518,104660.0,104650.0,0.4391]
[1737264123899,0.11607518,104660.0,104650.0,0.3608]
[1737264124099,0.12862,104660.0,104650.0,0.3608]
[1737264125501,0.12862,104660.0,104650.0,0.42905518]
[1737264125903,0.04782,104660.0,104650.0,0.42905518]
[1737264126296,0.25499525,104670.0,104650.0,0.55807718]
[1737264126505,0.08609525,104670.0,104660.0,0.3608]
[1737264126703,0.08609525,104670.0,104660.0,0.4434]
[1737264128705,0.03827825,104670.0,104660.0,0.55947518]
[1737264128907,0.03827825,104670.0,104660.0,0.63907518]
[1737264134507,0.44261921,104700.0,104660.0,0.63907518]
[1737264134508,0.32655803,104700.0,104660.0,0.63907518]
[1737264134708,0.047809,104690.0,104680.0,0.47686618]
[1737264134907,0.047809,104690.0,104680.0,0.86766618]
[1737264137316,0.047809,104690.0,104680.0,0.799411]
[1737264140419,0.047809,104690.0,104680.0,0.7516]
[1737264140815,0.219109,104690.0,104680.0,0.7516]
[1737264145221,0.28736418,104690.0,104680.0,0.7516]
[1737264145721,0.219109,104690.0,104680.0,0.7516]
[1737264149622,0.28736418,104690.0,104680.0,0.7516]
[1737264149925,0.42882221,104690.0,104680.0,0.7516]
[1737264151027,0.45734841,104690.0,104680.0,0.7516]
[1737264152315,0.38909323,104690.0,104680.0,0.7516]
[1737264155819,0.36125185,104690.0,104680.0,0.7516]
[1737264157028,0.36125185,104690.0,104680.0,0.92365056]
[1737264158419,0.16998423,104690.0,104680.0,1.11831974]
[1737264158617,0.16998423,104690.0,104680.0,1.20361974]
[1737264159922,0.16998423,104690.0,104680.0,1.4323688]
[1737264161225,0.31234041,104690.0,104680.0,1.4323688]
[1737264162724,0.19016618,104690.0,104680.0,1.19206306]
[1737264162913,0.19016618,104690.0,104680.0,1.26031824]
[1737264163921,0.36015041,104690.0,104680.0,1.03156918]
[1737264165528,0.19016618,104690.0,104680.0,1.20352597]
[1737264170525,0.25842136,104690.0,104680.0,0.92355679]
[1737264170725,0.42262136,104690.0,104680.0,0.92355679]
[1737264172825,0.59260559,104690.0,104680.0,0.7516]
[1737264173529,0.52435041,104690.0,104680.0,0.7516]
[1737264175933,0.59260559,104690.0,104680.0,0.7516]
[1737264176426,0.42262136,104690.0,104680.0,0.7516]
[1737264177936,0.35436618,104690.0,104680.0,0.7516]
[1737264178937,0.52435041,104690.0,104680.0,0.7516]
[1737264180036,0.52435041,104690.0,104680.0,0.3908]
[1737264181525,0.52435041,104690.0,104680.0,0.438614]
[1737264181725,0.35436618,104690.0,104680.0,0.438614]
[1737264182932,0.35436618,104690.0,104680.0,0.50686918]
[1737264183126,0.35436618,104690.0,104680.0,0.438614]
[1737264183328,0.14235618,104690.0,104680.0,0.50686918]
[1737264183528,0.14235618,104690.0,104680.0,0.58096918]
[1737264184137,0.14235618,104690.0,104680.0,0.75292597]
[1737264184541,0.14235618,104690.0,104680.0,0.82892597]
[1737264185348,0.14235618,104690.0,104680.0,1.05767503]
[1737264186941,0.31234041,104690.0,104680.0,0.65696918]
[1737264187540,0.31234041,104690.0,104680.0,0.578714]
[1737264187842,0.31234041,104690.0,104680.0,0.64696918]
[1737264188253,0.14235618,104690.0,104680.0,0.81892597]
[1737264189646,0.46878823,104700.0,104690.0,0.04781]
[1737264189846,0.46878823,104700.0,104690.0,0.49686518]
[1737264190851,0.298804,104700.0,104690.0,0.66882197]
[1737264191748,0.298804,104700.0,104690.0,0.74622197]
[1737264192053,0.298804,104700.0,104690.0,0.57426518]
[1737264192751,0.24235618,104700.0,104690.0,0.57426518]
[1737264193550,0.21778623,104710.0,104700.0,0.047805]
[1737264193850,0.21778623,104710.0,104700.0,0.63866018]
[1737264194649,0.23088654,104710.0,104700.0,0.63866018]
[1737264194849,0.06090231,104710.0,104700.0,0.81061697]
[1737264195059,0.01310031,104710.0,104700.0,0.81061697]
[1737264195242,0.29538223,104720.0,104700.0,0.76281197]
[1737264195445,0.29538223,104720.0,104710.0,0.47685618]
[1737264195847,0.125398,104720.0,104710.0,0.47685618]
[1737264199050,0.13833933,104720.0,104710.0,0.47685618]
[1737264202659,0.13833933,104720.0,104710.0,0.3608]
[1737264202859,0.20659451,104720.0,104710.0,0.3608]
[1737264203156,0.13833933,104720.0,104710.0,0.3608]
[1737264204157,0.20659451,104720.0,104710.0,0.3608]
[1737264204560,0.13833933,104720.0,104710.0,0.3608]
[1737264205056,0.30832356,104720.0,104710.0,0.3608]
[1737264206053,0.73737874,104720.0,104690.0,0.428609]
[1737264206255,0.047805,104700.0,104690.0,0.428609]
[1737264206754,0.047805,104700.0,104690.0,0.02]
[1737264206755,0.19606018,104700.0,104690.0,0.02]
[1737264207458,0.04781,104690.0,104680.0,0.93675522]
[1737264207760,0.19266518,104690.0,104680.0,0.41070585]
[1737264207950,0.55346518,104690.0,104680.0,0.41070585]
[1737264208151,0.12441,104690.0,104680.0,0.41070585]
[1737264208354,0.19266518,104690.0,104680.0,0.01]
[1737264208649,0.55346518,104690.0,104680.0,0.01]
[1737264210654,0.63166518,104690.0,104680.0,0.01]
[1737264210852,0.21608327,104690.0,104680.0,0.3708]
[1737264215858,0.16998423,104700.0,104680.0,0.55512436]
[1737264216064,0.16998423,104700.0,104690.0,0.48686518]
[1737264216262,0.16998423,104700.0,104690.0,0.56346518]
[1737264217267,0.268899,104720.0,104710.0,0.047801]
[1737264217457,0.28140381,104720.0,104710.0,0.408601]
[1737264219264,0.23360481,104720.0,104710.0,0.83765618]
[1737264220562,0.28140081,104720.0,104710.0,0.83765618]
[1737264222767,0.28140081,104720.0,104710.0,0.769401]
[1737264224066,0.42333854,104720.0,104710.0,0.769401]
[1737264224668,0.20223854,104720.0,104710.0,0.83765618]
[1737264229576,0.20223854,104720.0,104710.0,0.769401]
[1737264229875,0.27049372,104720.0,104710.0,0.3608]
[1737264230069,0.34519372,104720.0,104710.0,0.3608]
[1737264230264,0.49369372,104720.0,104710.0,0.3608]
[1737264230671,0.047801,104710.0,104700.0,0.553303]
[1737264231165,0.047801,104710.0,104700.0,0.481403]
[1737264231571,0.047801,104710.0,104700.0,0.408603]
[1737264239181,0.047801,104710.0,104700.0,0.3608]
[1737264240091,0.18973873,104710.0,104700.0,0.408605]
[1737264243686,0.25799391,104710.0,104690.0,0.3708]
[1737264243891,0.19356018,104700.0,104690.0,0.3708]
[1737264244090,0.197705,104700.0,104690.0,0.3708]
[1737264244294,0.269605,104700.0,104690.0,0.3708]
[1737264245186,0.269605,104700.0,104690.0,0.01]
[1737264245187,0.33786018,104700.0,104690.0,0.01]
[1737264245391,0.64978214,104700.0,104690.0,0.01]
[1737264245688,1.01058214,104700.0,104690.0,0.01]
[1737264246895,0.80038923,104700.0,104690.0,0.01]
[1737264248096,0.50784441,104700.0,104690.0,0.01]
[1737264248296,0.43958923,104700.0,104690.0,0.01]
[1737264249400,0.29528923,104700.0,104690.0,0.41861]
[1737264249695,0.21778923,104700.0,104690.0,0.41861]
[1737264249885,0.35973636,104700.0,104690.0,0.49101]
[1737264250997,0.18975213,104700.0,104690.0,0.49101]
[1737264253496,0.20144273,104700.0,104690.0,0.49101]
[1737264254396,0.37142696,104700.0,104690.0,0.49101]
[1737264254592,0.32362196,104700.0,104690.0,0.55926518]
[1737264255004,0.31193136,104700.0,104690.0,0.55926518]
[1737264255397,0.14194713,104710.0,104690.0,0.51145518]
[1737264255598,0.14194713,104710.0,104700.0,0.554905]
[1737264256499,0.15369375,104710.0,104700.0,0.554905]
[1737264256699,0.01174662,104710.0,104700.0,0.554905]
[1737264256903,0.25800031,104720.0,104700.0,0.554905]
[1737264257204,0.25800031,104720.0,104710.0,0.3608]
[1737264257393,0.18974513,104720.0,104710.0,0.3608]
[1737264259505,0.047801,104710.0,104700.0,0.119005]
[1737264260397,0.11605618,104710.0,104700.0,0.0712]
[1737264260592,0.047805,104700.0,104690.0,0.60501485]
[1737264260791,0.408605,104700.0,104690.0,0.48310585]
[1737264261201,0.047805,104700.0,104690.0,0.48310585]
[1737264261498,0.408605,104700.0,104690.0,0.48310585]
[1737264261803,0.408605,104700.0,104690.0,0.25435679]
[1737264262009,0.55068671,104710.0,104690.0,0.73122197]
[1737264262197,0.55068671,104710.0,104700.0,0.0779]
[1737264265306,0.61894189,104710.0,104700.0,0.0779]
[1737264265512,0.69304189,104710.0,104690.0,0.66296679]
[1737264266000,0.62478671,104710.0,104690.0,0.66296679]
[1737264266701,0.67259071,104710.0,104690.0,0.66296679]
[1737264266903,0.82249071,104710.0,104690.0,0.66296679]
[1737264267103,0.77468671,104710.0,104690.0,0.66296679]
[1737264267411,0.047805,104700.0,104690.0,0.59056679]
[1737264268107,0.047805,104700.0,104690.0,0.18195679]
[1737264268605,0.408605,104700.0,104690.0,0.22976679]
[1737264269309,0.047805,104700.0,104690.0,0.22976679]
[1737264269709,0.047805,104700.0,104690.0,0.05781]
[1737264270599,0.047805,104700.0,104690.0,0.13361]
[1737264270796,0.05952913,104700.0,104690.0,0.49441]
[1737264271001,0.05952913,104700.0,104690.0,0.66636679]
[1737264272305,0.65068471,104710.0,104700.0,0.047805]
[1737264272306,0.14208471,104710.0,104700.0,0.047805]
[1737264272498,0.21778123,104720.0,104710.0,0.047801]
[1737264272703,0.21778123,104720.0,104710.0,0.408601]
[1737264273305,0.047797,104720.0,104710.0,0.408601]
[1737264274307,0.047801,104710.0,104700.0,0.87456408]
[1737264274602,0.18685618,104710.0,104700.0,0.51468538]
[1737264274807,0.25615618,104710.0,104700.0,0.51468538]
[1737264275008,0.187901,104710.0,104700.0,0.51468538]
[1737264275811,0.187901,104710.0,104690.0,0.89478823]
[1737264276700,0.187901,104710.0,104690.0,0.494408]
[1737264277904,0.187901,104710.0,104690.0,0.66603917]
[1737264279700,0.187901,104710.0,104690.0,0.78210035]
[1737264280599,0.187901,104710.0,104690.0,0.73429235]
[1737264280804,0.187901,104710.0,104700.0,0.047805]
[1737264281704,0.35788523,104710.0,104700.0,0.047805]
[1737264284305,0.35788523,104710.0,104700.0,0.408605]
[1737264284601,0.28858523,104710.0,104700.0,0.408605]
[1737264284909,0.16998423,104710.0,104700.0,0.54346018]
[1737264285110,0.16998423,104710.0,104700.0,0.61506018]
[1737264285313,0.22944181,104720.0,104700.0,1.01544041]
[1737264285915,0.27724181,104720.0,104700.0,1.01544041]
[1737264286217,0.22944181,104720.0,104700.0,1.01544041]
[1737264286413,0.27724081,104720.0,104700.0,1.01544041]
[1737264287114,0.63804081,104720.0,104700.0,1.01544041]
[1737264287316,0.46805658,104720.0,104710.0,0.17163117]
[1737264290517,0.42025758,104720.0,104710.0,0.17163117]
[1737264291515,0.42025758,104720.0,104710.0,0.21943217]
[1737264291820,0.42025758,104720.0,104710.0,0.047801]
[1737264292017,0.05945758,104720.0,104710.0,0.047801]
[1737264292923,0.22944181,104720.0,104710.0,0.047801]
[1737264293416,0.18164381,104720.0,104710.0,0.54745618]
[1737264293615,0.18164381,104720.0,104710.0,0.479201]
[1737264294213,0.01165958,104720.0,104710.0,0.87958123]
[1737264294413,0.28587723,104730.0,104710.0,0.83178023]
[1737264294615,0.28587723,104730.0,104720.0,0.408596]
[1737264295422,0.28587723,104730.0,104720.0,0.3608]
[1737264295719,0.35413241,104730.0,104720.0,0.3608]
[1737264295920,0.35413241,104730.0,104710.0,0.87957923]
[1737264295921,0.49873241,104730.0,104710.0,0.51877923]
[1737264296121,0.047796,104720.0,104710.0,0.44817923]
[1737264297026,0.047796,104720.0,104710.0,0.21943017]
[1737264299823,0.21778023,104720.0,104710.0,0.047799]
[1737264300824,0.047796,104720.0,104710.0,0.047799]
[1737264302121,0.21778023,104720.0,104710.0,0.047799]
[1737264303021,0.21778023,104720.0,104710.0,0.11605418]